Workbook

Sheet Calcs
A1: JRB Catenary Cable V20170930 | I1: JRB STRUCTURAL ENGINEERING PTY LTD | J1: Notes:
B3: x | C3: y | E3: Solving Striaght Line
A4: Left | B4: 0 | C4: 0 | E4: m1 = | F4: =(C5-C4)/(B5-B4) -> 0.25
A5: Right | B5: 20 | C5: 5 | E5: c1 = | F5: =C4-F4*B4 -> 0
E6: Normal Line
A7: L = | B7: 23 | C7: m | E7: m2 = | F7: =-1/F4 -> -4
A8: r = | B8: 10 | C8: kg/m
A9: d = | B9: =B5-B4 -> 20 | C9: m | E9: Solving Catenary Profile
A10: h = | B10: =C5-C4 -> 5 | C10: m | E10: Solving for a
A11: H = | B11: =a*9.81*B8 -> 1164.731431 | C11: N | E11: a = | F11: =solve_a(B7,B10,B9) -> 11.8728994
E12: Error = | F12: 2.065711868e-08
A13: x_cat = | B13: =a*ASINH(F4)-k -> 10.31522649 | C13: m | E13: Iterations = | F13: 16
A14: x_lin = | B14: =(B15-$F$7*B13-$F$5)/($F$4-$F$7) -> 9.237598434 | C14: m | E14: Exit Flag = | F14: 1
A15: y_cat = | B15: =a*COSH(($B$13+k)/a)+w -> -2.001112628 | C15: m | E15: Now Solving Parameters
A16: y_lin = | B16: =F4*B14+F5 -> 2.309399609 | C16: m | E16: x1 = | F16: =1/2*(a*LN((L+h)/(L-h))-d) -> -7.37708209
A17: max_sag = | B17: =SQRT((B14-B13)^2+(B16-B15)^2) -> 4.443174312 | C17: m | E17: k = | F17: =F16-B4 -> -7.37708209
E18: w = | F18: =C4-a*COSH(F16/a) -> -14.23941721
E20: x_lowest = | F20: =-1*k -> 7.37708209 | G20: m
E21: y_lowest = | F21: =a+w -> -2.366517805 | G21: m
A23: y = a*cosh((x+k)/a)+w | F23: y' = sinh((x+k)/a)
A24: =CONCATENATE("y = ",TEXT(a,"0.00"),"*cosh((x",TEXT(k,"+0.00;-0.00"),")/",TEXT(a,"0.00"),")",TEXT(w,"+0.00;-0.00")) -> y = 11.87*cosh((x-7.38)/11.87)-14.24 | F24: =CONCATENATE("y' = sinh((x",TEXT(k,"+0.00;-0.00"),")/",TEXT(a,"0.00"),")") -> y' = sinh((x-7.38)/11.87)
A26: Li (m) | B26: x (m) | C26: y (m) | D26: y' | E26: V (N) | F26: T (N) | G26: xint (m) | H26: yint (m) | I26: sag (m)
A27: 0 | B27: =B4 -> 0 | C27: =a*COSH((B27+k)/a)+w -> 0 | D27: =SINH((B27+k)/a) -> -0.662095752 | E27: =$B$11*D27 -> -771.163733 | F27: =SQRT(E27^2+$B$11^2) -> 1396.886828 | G27: =(C27-$F$7*B27-$F$5)/($F$4-$F$7) -> 0 | H27: =$F$4*G27+$F$5 -> 0 | I27: =SQRT((B27-G27)^2+(H27-C27)^2) -> 0
A28: =A27+L/100 -> 0.23 | B28: =a*ASINH(A28/a+SINH(($B$27+k)/a))-k -> 0.1926294207 | C28: -0.1256705706 | D28: -0.6427239042 | E28: -748.600733 | F28: 1384.558545 | G28: 0.1517287323 | H28: 0.03793218308 | I28: 0.1686378585
A29: 0.46 | B29: 0.3869634411 | C29: -0.2486886399 | D29: -0.6233520564 | E29: -726.037733 | F29: 1372.490473 | G29: 0.3056859116 | H29: 0.07642147791 | I29: 0.335115839
A30: 0.69 | B30: 0.5829946679 | C30: -0.368983632 | D30: -0.6039802087 | E30: -703.474733 | F30: 1360.689534 | G30: 0.4618811858 | H30: 0.1154702965 | I30: 0.4993636794
A31: 0.92 | B31: 0.7807135051 | C31: -0.4864840915 | D31: -0.5846083609 | E31: -680.911733 | F31: 1349.162739 | G31: 0.6203223362 | H31: 0.1550805841 | I31: 0.6613097307
A32: 1.15 | B32: 0.9801080407 | C32: -0.6011177895 | D32: -0.5652365131 | E32: -658.348733 | F32: 1337.917173 | G32: 0.7810151466 | H32: 0.1952537867 | I32: 0.8208810315
A33: 1.38 | B33: 1.181163935 | C33: -0.7128118412 | D33: -0.5458646653 | E33: -635.785733 | F33: 1326.959987 | G33: 0.9439632707 | H33: 0.2359908177 | I33: 0.9780033951
A34: 1.61 | B34: 1.383864314 | C34: -0.8214928354 | D34: -0.5264928175 | E34: -613.222733 | F34: 1316.298381 | G34: 1.109168099 | H34: 0.2772920248 | I34: 1.13260151
A35: 1.84 | B35: 1.58818966 | C35: -0.9270869766 | D35: -0.5071209697 | E35: -590.659733 | F35: 1305.939596 | G35: 1.276628627 | H35: 0.3191571567 | I35: 1.284599049
A36: 2.07 | B36: 1.794117714 | C36: -1.02952024 | D36: -0.487749122 | E36: -568.096733 | F36: 1295.890893 | G36: 1.446341322 | H36: 0.3615853304 | I36: 1.433918801
A37: 2.3 | B37: 2.001623381 | C37: -1.128718537 | D37: -0.4683772742 | E37: -545.533733 | F37: 1286.15954 | G37: 1.618299997 | H37: 0.4045749992 | I37: 1.580482802 | J37: x
A38: 2.53 | B38: 2.21067864 | C38: -1.224607899 | D38: -0.4490054264 | E38: -522.970733 | F38: 1276.752793 | G38: 1.792495685 | H38: 0.4481239211 | I38: 1.724212494
A39: 2.76 | B39: 2.421252466 | C39: -1.317114663 | D39: -0.4296335786 | E39: -500.407733 | F39: 1267.67788 | G39: 1.968916518 | H39: 0.4922291295 | I39: 1.865028892
A40: 2.99 | B40: 2.633310762 | C40: -1.406165679 | D40: -0.4102617308 | E40: -477.844733 | F40: 1258.941975 | G40: 2.147547616 | H40: 0.536886904 | I40: 2.002852759
A41: 3.22 | B41: 2.846816298 | C41: -1.491688527 | D41: -0.390889883 | E41: -455.281733 | F41: 1250.552184 | G41: 2.32837098 | H41: 0.5820927451 | I41: 2.137604808
A42: 3.45 | B42: 3.061728668 | C42: -1.573611737 | D42: -0.3715180352 | E42: -432.718733 | F42: 1242.515517 | G42: 2.511365397 | H42: 0.6278413492 | I42: 2.269205901
A43: 3.68 | B43: 3.278004255 | C43: -1.651865025 | D43: -0.3521461875 | E43: -410.155733 | F43: 1234.838869 | G43: 2.696506352 | H43: 0.6741265879 | I43: 2.397577276
A44: 3.91 | B44: 3.495596217 | C44: -1.72637954 | D44: -0.3327743397 | E44: -387.592733 | F44: 1227.528995 | G44: 2.883765959 | H44: 0.7209414898 | I44: 2.522640777
A45: 4.14 | B45: 3.714454486 | C45: -1.797088109 | D45: -0.3134024919 | E45: -365.029733 | F45: 1220.592485 | G45: 3.073112902 | H45: 0.7682782255 | I45: 2.644319092
A46: 4.37 | B46: 3.934525786 | C46: -1.863925496 | D46: -0.2940306441 | E46: -342.466733 | F46: 1214.035737 | G46: 3.264512388 | H46: 0.8161280969 | I46: 2.762536011
A47: 4.6 | B47: 4.155753669 | C47: -1.926828656 | D47: -0.2746587963 | E47: -319.903733 | F47: 1207.864937 | G47: 3.457926122 | H47: 0.8644815306 | I47: 2.877216684
A48: 4.83 | B48: 4.378078572 | C48: -1.985737003 | D48: -0.2552869485 | E48: -297.340733 | F48: 1202.086028 | G48: 3.653312302 | H48: 0.9133280755 | I48: 2.988287884
A49: 5.06 | B49: 4.60143789 | C49: -2.040592663 | D49: -0.2359151008 | E49: -274.777733 | F49: 1196.704688 | G49: 3.850625623 | H49: 0.9626564058 | I49: 3.095678283
A50: 5.29 | B50: 4.825766079 | C50: -2.091340735 | D50: -0.216543253 | E50: -252.214733 | F50: 1191.726302 | G50: 4.049817313 | H50: 1.012454328 | I50: 3.199318721
A51: 5.52 | B51: 5.050994767 | C51: -2.137929542 | D51: -0.1971714052 | E51: -229.651733 | F51: 1187.15594 | G51: 4.250835182 | H51: 1.062708796 | I51: 3.299142484
A52: 5.75 | B52: 5.277052897 | C52: -2.180310879 | D52: -0.1777995574 | E52: -207.088733 | F52: 1182.998331 | G52: 4.453623696 | H52: 1.113405924 | I52: 3.39508557
A53: 5.98 | B53: 5.503866889 | C53: -2.218440244 | D53: -0.1584277096 | E53: -184.525733 | F53: 1179.25784 | G53: 4.658124074 | H53: 1.164531018 | I53: 3.487086961
A54: 6.21 | B54: 5.731360815 | C54: -2.252277062 | D54: -0.1390558618 | E54: -161.962733 | F54: 1175.938448 | G54: 4.8642744 | H54: 1.2160686 | I54: 3.575088877
A55: 6.44 | B55: 5.959456602 | C55: -2.281784892 | D55: -0.1196840141 | E55: -139.399733 | F55: 1173.04373 | G55: 5.072009768 | H55: 1.268002442 | I55: 3.659037032
A56: 6.67 | B56: 6.188074246 | C56: -2.306931619 | D56: -0.1003121663 | E56: -116.836733 | F56: 1170.576836 | G56: 5.281262439 | H56: 1.32031561 | I56: 3.738880864
A57: 6.9 | B57: 6.41713205 | C57: -2.327689623 | D57: -0.08094031849 | E57: -94.27373302 | F57: 1168.540476 | G57: 5.491962018 | H57: 1.372990505 | I57: 3.814573764
A58: 7.13 | B58: 6.646546873 | C58: -2.344035929 | D58: -0.0615684707 | E58: -71.71073302 | F58: 1166.936903 | G58: 5.704035662 | H58: 1.426008915 | I58: 3.886073277
A59: 7.36 | B59: 6.876234387 | C59: =a*COSH((B59+k)/a)+w -> -2.355952331 | D59: =SINH((B59+k)/a) -> -0.04219662292 | E59: =$B$11*D59 -> -49.14773302 | F59: =SQRT(E59^2+$B$11^2) -> 1165.767904 | G59: =(C59-$F$7*B59-$F$5)/($F$4-$F$7) -> 5.917408286 | H59: =$F$4*G59+$F$5 -> 1.479352072 | I59: =SQRT((B59-G59)^2+(H59-C59)^2) -> 3.953341289
A60: =A59+L/100 -> 7.59 | B60: =a*ASINH(A60/a+SINH(($B$27+k)/a))-k -> 7.106109355 | C60: -2.363425493 | D60: -0.02282477513 | E60: -26.58473302 | F60: 1165.034787 | G60: 6.132002806 | H60: 1.533000702 | I60: 4.016344191
A61: 7.82 | B61: 7.336085912 | C61: -2.366447026 | D61: -0.00345292735 | E61: -4.021733015 | F61: 1164.738375 | G61: 6.347740381 | H61: 1.586935095 | I61: 4.075053017
A62: 8.05 | B62: 7.566077849 | C62: -2.365013532 | D62: 0.01591892043 | E62: 18.54126698 | F62: 1164.879001 | G62: 6.564540674 | H62: 1.641135168 | I62: 4.129443561
A63: 8.28 | B63: 7.795998905 | C63: -2.359126623 | D63: 0.03529076822 | E63: 41.10426698 | F63: 1165.456506 | G63: 6.782322117 | H63: 1.695580529 | I63: 4.179496468
A64: 8.51 | B64: 8.02576306 | C64: -2.348792914 | D64: 0.054662616 | E64: 63.66726698 | F64: 1166.470243 | G64: 7.001002194 | H64: 1.750250549 | I64: 4.22519729
A65: 8.74 | B65: 8.25528482 | C65: -2.334023984 | D65: 0.07403446379 | E65: 86.23026698 | F65: 1167.919075 | G65: 7.220497716 | H65: 1.805124429 | I65: 4.266536527
A66: 8.97 | B66: 8.484479501 | C66: -2.314836312 | D66: 0.09340631157 | E66: 108.793267 | F66: 1169.801386 | G66: 7.440725104 | H66: 1.860181276 | I66: 4.303509626
A67: 9.2 | B67: 8.713263509 | C67: -2.291251187 | D67: 0.1127781594 | E67: 131.356267 | F67: 1172.115087 | G67: 7.66160067 | H67: 1.915400168 | I67: 4.336116967
A68: 9.43 | B68: 8.941554601 | C68: -2.263294589 | D68: 0.1321500071 | E68: 153.919267 | F68: 1174.857629 | G68: 7.883040898 | H68: 1.970760225 | I68: 4.364363805
A69: 9.66 | B69: 9.169272144 | C69: -2.23099705 | D69: 0.1515218549 | E69: 176.482267 | F69: 1178.026018 | G69: 8.104962712 | H69: 2.026240678 | I69: 4.388260206
A70: 9.89 | B70: 9.39633735 | C70: -2.194393488 | D70: 0.1708937027 | E70: 199.045267 | F70: 1181.616827 | G70: 8.327283744 | H70: 2.081820936 | I70: 4.407820937
A71: 10.12 | B71: 9.622673503 | C71: -2.153523028 | D71: 0.1902655505 | E71: 221.608267 | F71: 1185.626219 | G71: 8.549922585 | H71: 2.137480646 | I71: 4.423065347
A72: 10.35 | B72: 9.848206163 | C72: -2.108428796 | D72: 0.2096373983 | E72: 244.171267 | F72: 1190.049963 | G72: 8.772799025 | H72: 2.193199756 | I72: 4.43401722
A73: 10.58 | B73: 10.07286335 | C73: -2.059157704 | D73: 0.2290092461 | E73: 266.734267 | F73: 1194.883457 | G73: 8.995834286 | H73: 2.248958571 | I73: 4.440704613
A74: 10.81 | B74: 10.29657573 | C74: -2.00576022 | D74: 0.2483810938 | E74: 289.297267 | F74: 1200.121751 | G74: 9.218951226 | H74: 2.304737806 | I74: 4.443159665
A75: 11.04 | B75: 10.51927673 | C75: -1.948290123 | D75: 0.2677529416 | E75: 311.860267 | F75: 1205.759567 | G75: 9.442074539 | H75: 2.360518635 | I75: 4.441418407
A76: 11.27 | B76: 10.74090268 | C76: -1.886804256 | D76: 0.2871247894 | E76: 334.423267 | F76: 1211.791331 | G76: 9.665130932 | H76: 2.416282733 | I76: 4.435520543
A77: 11.5 | B77: 10.96139293 | C77: -1.821362269 | D77: 0.3064966372 | E77: 356.986267 | F77: 1218.21119 | G77: 9.888049279 | H77: 2.47201232 | I77: 4.42550923
A78: 11.73 | B78: 11.1806899 | C78: -1.75202636 | D78: 0.325868485 | E78: 379.549267 | F78: 1225.013042 | G78: 10.11076077 | H78: 2.527690192 | I78: 4.411430848
A79: 11.96 | B79: 11.3987392 | C79: -1.678861014 | D79: 0.3452403328 | E79: 402.112267 | F79: 1232.190563 | G79: 10.33319901 | H79: 2.583299752 | I79: 4.393334758
A80: 12.19 | B80: 11.6154896 | C80: -1.601932742 | D80: 0.3646121805 | E80: 424.675267 | F80: 1239.737226 | G80: 10.55530016 | H80: 2.638825039 | I80: 4.371273066
A81: 12.42 | B81: 11.83089311 | C81: -1.521309827 | D81: 0.3839840283 | E81: 447.238267 | F81: 1247.646334 | G81: 10.77700297 | H81: 2.694250743 | I81: 4.345300375
A82: 12.65 | B82: 12.04490497 | C82: -1.43706207 | D82: 0.4033558761 | E82: 469.801267 | F82: 1255.911039 | G82: 10.9982489 | H82: 2.749562224 | I82: 4.315473546
A83: 12.88 | B83: 12.25748363 | C83: -1.349260545 | D83: 0.4227277239 | E83: 492.364267 | F83: 1264.524369 | G83: 11.21898211 | H83: 2.804745527 | I83: 4.281851452
A84: 13.11 | B84: 12.46859072 | C84: -1.257977361 | D84: 0.4420995717 | E84: 514.927267 | F84: 1273.479249 | G84: 11.43914954 | H84: 2.859787384 | I84: 4.244494746
A85: 13.34 | B85: 12.67819105 | C85: -1.163285432 | D85: 0.4614714195 | E85: 537.490267 | F85: 1282.768527 | G85: 11.65870089 | H85: 2.914675222 | I85: 4.203465628
A86: 13.57 | B86: 12.8862525 | C86: -1.065258261 | D86: 0.4808432673 | E86: 560.053267 | F86: 1292.384993 | G86: 11.87758864 | H86: 2.969397161 | I86: 4.158827617
A87: 13.8 | B87: 13.09274598 | C87: -0.9639697325 | D87: 0.500215115 | E87: 582.616267 | F87: 1302.321397 | G87: 12.09576805 | H87: 3.023942012 | I87: 4.110645337
A88: 14.03 | B88: 13.29764538 | C88: -0.8594939125 | D88: 0.5195869628 | E88: 605.179267 | F88: 1312.570475 | G88: 12.31319708 | H88: 3.07829927 | I88: 4.058984306
A89: 14.26 | B89: 13.50092742 | C89: -0.7519048682 | D89: 0.5389588106 | E89: 627.742267 | F89: 1323.124961 | G89: 12.52983642 | H89: 3.132459106 | I89: 4.003910738
A90: 14.49 | B90: 13.70257162 | C90: -0.6412764955 | D90: 0.5583306584 | E90: 650.305267 | F90: 1333.977604 | G90: 12.74564941 | H90: 3.186412353 | I90: 3.945491356
A91: 14.72 | B91: 13.90256019 | C91: =a*COSH((B91+k)/a)+w -> -0.5276823595 | D91: =SINH((B91+k)/a) -> 0.5777025062 | E91: =$B$11*D91 -> 672.868267 | F91: =SQRT(E91^2+$B$11^2) -> 1345.121189 | G91: =(C91-$F$7*B91-$F$5)/($F$4-$F$7) -> 12.96060198 | H91: =$F$4*G91+$F$5 -> 3.240150494 | I91: =SQRT((B91-G91)^2+(H91-C91)^2) -> 3.883793209
A92: =A91+L/100 -> 14.95 | B92: =a*ASINH(A92/a+SINH(($B$27+k)/a))-k -> 14.10087788 | C92: -0.411195548 | D92: 0.597074354 | E92: 695.431267 | F92: 1356.548545 | G92: 13.17466259 | H92: 3.293665647 | I92: 3.818883508
A93: 15.18 | B93: 14.29751194 | C93: -0.2918885381 | D93: 0.6164462017 | E93: 717.994267 | F93: 1368.252563 | G93: 13.38780217 | H93: 3.346950544 | I93: 3.750829472
A94: 15.41 | B94: 14.49245196 | C94: -0.1698330735 | D94: 0.6358180495 | E94: 740.557267 | F94: 1380.226204 | G94: 13.59999406 | H94: 3.399998516 | I94: 3.679698177
A95: 15.64 | B95: 14.68568977 | C95: -0.04510005501 | D95: 0.6551898973 | E95: 763.120267 | F95: 1392.462513 | G95: 13.81121389 | H95: 3.452803471 | I95: 3.605556427
A96: 15.87 | B96: 14.87721933 | C96: 0.08224055779 | D96: 0.6745617451 | E96: 785.683267 | F96: 1404.954627 | G96: 14.0214395 | H96: 3.505359875 | I96: 3.528470628
A97: 16.1 | B97: 15.06703663 | C97: 0.2121198342 | D97: 0.6939335929 | E97: 808.246267 | F97: 1417.695784 | G97: 14.2306509 | H97: 3.557662726 | I97: 3.448506679
A98: 16.33 | B98: 15.25513954 | C98: 0.3444699488 | D98: 0.7133054407 | E98: 830.809267 | F98: 1430.67933 | G98: 14.43883014 | H98: 3.609707536 | I98: 3.365729866
A99: 16.56 | B99: 15.44152775 | C99: 0.4792242484 | D99: 0.7326772884 | E99: 853.372267 | F99: 1443.898727 | G99: 14.64596124 | H99: 3.661490309 | I99: 3.280204774
A100: 16.79 | B100: 15.62620262 | C100: 0.6163173091 | D100: 0.7520491362 | E100: 875.935267 | F100: 1457.347556 | G100: 14.85203006 | H100: 3.713007516 | I100: 3.191995203
A101: 17.02 | B101: 15.80916706 | C101: 0.7556849845 | D101: 0.771420984 | E101: 898.498267 | F101: 1471.019525 | G101: 15.05702429 | H101: 3.764256072 | I101: 3.101164094
A102: 17.25 | B102: 15.99042549 | C102: 0.8972644457 | D102: 0.7907928318 | E102: 921.061267 | F102: 1484.90847 | G102: 15.26093327 | H102: 3.815233318 | I102: 3.007773468
A103: 17.48 | B103: 16.16998367 | C103: 1.040994213 | D103: 0.8101646796 | E103: 943.624267 | F103: 1499.00836 | G103: 15.46374797 | H103: 3.865936993 | I103: 2.911884367
A104: 17.71 | B104: 16.34784863 | C104: 1.186814183 | D104: 0.8295365274 | E104: 966.187267 | F104: 1513.313299 | G104: 15.66546087 | H104: 3.916365218 | I104: 2.813556807
A105: 17.94 | B105: 16.52402859 | C105: 1.334665643 | D105: 0.8489083751 | E105: 988.750267 | F105: 1527.817528 | G105: 15.86606588 | H105: 3.96651647 | I105: 2.712849737
A106: 18.17 | B106: 16.69853282 | C106: 1.484491287 | D106: 0.8682802229 | E106: 1011.313267 | F106: 1542.515423 | G106: 16.06555825 | H106: 4.016389563 | I106: 2.609821006
A107: 18.4 | B107: 16.87137162 | C107: 1.636235222 | D107: 0.8876520707 | E107: 1033.876267 | F107: 1557.401503 | G107: 16.26393452 | H107: 4.06598363 | I107: 2.504527332
A108: 18.63 | B108: 17.04255618 | C108: 1.789842969 | D108: 0.9070239185 | E108: 1056.439267 | F108: 1572.470423 | G108: 16.46119239 | H108: 4.115298099 | I108: 2.397024282
A109: 18.86 | B109: 17.21209852 | C109: 1.945261458 | D109: 0.9263957663 | E109: 1079.002267 | F109: 1587.716977 | G109: 16.65733071 | H109: 4.164332678 | I109: 2.287366257
A110: 19.09 | B110: 17.38001141 | C110: 2.102439028 | D110: 0.9457676141 | E110: 1101.565267 | F110: 1603.136097 | G110: 16.85234934 | H110: 4.213087334 | I110: 2.175606476
A111: 19.32 | B111: 17.54630833 | C111: 2.261325411 | D111: 0.9651394619 | E111: 1124.128267 | F111: 1618.722851 | G111: 17.04624912 | H111: 4.261562279 | I111: 2.061796971
A112: 19.55 | B112: 17.71100335 | C112: 2.421871719 | D112: 0.9845113096 | E112: 1146.691267 | F112: 1634.472444 | G112: 17.23903179 | H112: 4.309757948 | I112: 1.945988583
A113: 19.78 | B113: 17.87411109 | C113: 2.58403043 | D113: 1.003883157 | E113: 1169.254267 | F113: 1650.380213 | G113: 17.43069995 | H113: 4.357674987 | I113: 1.828230963
A114: 20.01 | B114: 18.03564666 | C114: 2.747755368 | D114: 1.023255005 | E114: 1191.817267 | F114: 1666.44163 | G114: 17.62125694 | H114: 4.405314236 | I114: 1.708572573
A115: 20.24 | B115: 18.19562562 | C115: 2.913001684 | D115: 1.042626853 | E115: 1214.380267 | F115: 1682.652293 | G115: 17.81070686 | H115: 4.452676716 | I115: 1.587060696
A116: 20.47 | B116: 18.3540639 | C116: 3.07972583 | D116: 1.061998701 | E116: 1236.943267 | F116: 1699.007932 | G116: 17.99905445 | H116: 4.499763613 | I116: 1.463741442
A117: 20.7 | B117: 18.51097774 | C117: 3.247885537 | D117: 1.081370549 | E117: 1259.506267 | F117: 1715.504399 | G117: 18.18630506 | H117: 4.546576265 | I117: 1.338659761 | J117: x
A118: 20.93 | B118: 18.6663837 | C118: 3.417439789 | D118: 1.100742396 | E118: 1282.069267 | F118: 1732.137671 | G118: 18.3724646 | H118: 4.593116151 | I118: 1.211859456
A119: 21.16 | B119: 18.82029854 | C119: 3.588348797 | D119: 1.120114244 | E119: 1304.632267 | F119: 1748.903845 | G119: 18.55753952 | H119: 4.63938488 | I119: 1.083383196
A120: 21.39 | B120: 18.97273925 | C120: 3.760573971 | D120: 1.139486092 | E120: 1327.195267 | F120: 1765.799135 | G120: 18.7415367 | H120: 4.685384175 | I120: 0.953272538
A121: 21.62 | B121: 19.12372296 | C121: 3.934077893 | D121: 1.15885794 | E121: 1349.758267 | F121: 1782.819869 | G121: 18.92446347 | H121: 4.731115868 | I121: 0.8215679395
A122: 21.85 | B122: 19.27326695 | C122: 4.108824285 | D122: 1.178229787 | E122: 1372.321267 | F122: 1799.962491 | G122: 19.10632755 | H122: 4.776581887 | I122: 0.6883087805
A123: 22.08 | B123: 19.42138855 | C123: =a*COSH((B123+k)/a)+w -> 4.284777987 | D123: 1.197601635 | E123: =$B$11*D123 -> 1394.884267 | F123: =SQRT(E123^2+$B$11^2) -> 1817.223549 | G123: 19.28713699 | H123: =$F$4*G123+$F$5 -> 4.821784247 | I123: =SQRT((B123-G123)^2+(H123-C123)^2) -> 0.553533383
A124: 22.31 | B124: =a*ASINH(A124/a+SINH(($B$27+k)/a))-k -> 19.5681052 | C124: =a*COSH((B124+k)/a)+w -> 4.46190492 | D124: 1.216973483 | E124: 1417.447267 | F124: 1834.599701 | G124: 19.46690017 | H124: =$F$4*G124+$F$5 -> 4.866725043 | I124: =SQRT((B124-G124)^2+(H124-C124)^2) -> 0.4172790317
A125: 22.54 | B125: =a*ASINH(A125/a+SINH(($B$27+k)/a))-k -> 19.71343435 | C125: =a*COSH((B125+k)/a)+w -> 4.640172064 | D125: 1.236345331 | E125: 1440.010267 | F125: 1852.087708 | G125: 19.64562576 | H125: =$F$4*G125+$F$5 -> 4.91140644 | I125: =SQRT((B125-G125)^2+(H125-C125)^2) -> 0.2795819958
A126: 22.77 | B126: =a*ASINH(A126/a+SINH(($B$27+k)/a))-k -> 19.85739347 | C126: =a*COSH((B126+k)/a)+w -> 4.819547422 | D126: 1.255717179 | E126: 1462.573267 | F126: 1869.68443 | G126: 19.82332266 | H126: =$F$4*G126+$F$5 -> 4.955830665 | I126: =SQRT((B126-G126)^2+(H126-C126)^2) -> 0.1404775506
A127: 23 | B127: =a*ASINH(A127/a+SINH(($B$27+k)/a))-k -> 20 | C127: =a*COSH((B127+k)/a)+w -> 5 | D127: 1.275089026 | E127: 1485.136267 | F127: 1887.386828 | G127: 20 | H127: =$F$4*G127+$F$5 -> 5 | I127: =SQRT((B127-G127)^2+(H127-C127)^2) -> 1.831026719e-14
E130: Max Design Tension = | F130: =MAX(F27:F127)/1000 -> 1.887386828 | G130: kN (unfactored)
F133: =3*F130 -> 5.662160484
F135: =5*3.77 -> 18.85
